[Event "GER-ch Youth ODJM 2019"]
[Site "Willingen"]
[Date "2019.06.14"]
[Round "8.9"]
[White "Hartmann, Jakob"]
[Black "Beesk, Kevin"]
[Result "1-0"]
[ECO "B48"]
[WhiteElo "2144"]
[BlackElo "1935"]
[Annotator "NA"]
[PlyCount "79"]
[EventDate "2019.06.07"]
[EventType "swiss"]
[EventRounds "9"]
[EventCountry "GER"]
[SourceTitle "playchess.com"]
[Source "ChessBase"]
[SourceQuality "1"]
[TimeControl "40/5400+30:1800+30"]

1. e4 {[%emt 0:00:00]} c5 {[%emt 0:00:00]} 2. Nf3 {[%emt 0:00:07]} e6 {[%emt 0:00:00]} 3. d4 {[%emt 0:00:23]} cxd4 {[%emt 0:00:00]} 4. Nxd4 {[%emt 0:00:07]} Nc6 {[%emt 0:00:00]} 5. Nc3 {[%emt 0:01:14]} Qc7 {[%emt 0:00:00]} 6. Be3 {[%emt 0:00:33]} a6 {[%emt 0:00:05]} 7. Qf3 {[%emt 0:02:26]} Bd6 {[%emt 0:00:06]} 8. O-O-O {[%emt 0:07:03]} Be5 {[%emt 0:00:19]} 9. g3 {[%emt 0:04:28]} Nf6 {[%emt 0:09:38]} 10. Qe2 {[%emt 0:08:05]} d6 {[%emt 0:00:11]} 11. Bg2 {[%emt 0:03:38]} Bd7 {[%emt 0:03:53]} 12. Kb1 {[%emt 0:06:28]} O-O {[%emt 0:13:12]} 13. f4 {[%emt 0:07:52]} Nxd4 {[%emt 0:00:17]} 14. Bxd4 {[%emt 0:01:52]} Bxd4 {[%emt 0:00:07]} 15. Rxd4 {[%emt 0:00:05]} Bc6 {[%emt 0:11:54]} 16. Rhd1 {[%emt 0:06:19]} Rfd8 {[%emt 0:01:09]} 17. Qd2 {[%emt 0:02:11]} Ne8 {[%emt 0:01:47]} 18. g4 {[%emt 0:04:37]} b5 {[%emt 0:07:10]} 19. g5 {[%emt 0:05:58]} Qb7 {[%emt 0:09:38]} 20. h4 {[%emt 0:06:43]} Rdb8 {[%emt 0:01:55]} 21. Qe3 {[%emt 0:04:12]} a5 {[%emt 0:01:15]} 22. Ne2 {[%emt 0:04:07]} b4 {[%emt 0:01:06]} 23. h5 {[%emt 0:02:14]} a4 {[%emt 0:00:48]} 24. h6 {[%emt 0:02:11]} b3 {[%emt 0:09:02]} 25. cxb3 {[%emt 0:01:42]} a3 {[%emt 0:01:59]} 26. Nc1 {[%emt 0:05:33]} axb2 {[%emt 0:05:48]} 27. Kxb2 {[%emt 0:00:18]} Nc7 {[%emt 0:00:18]} 28. Rxd6 {[%emt 0:04:35]} Nb5 {[%emt 0:00:34]} 29. R6d2 {[%emt 0:01:35]} Qa6 {[%emt 0:01:16]} 30. Ka1 {[%emt 0:00:56]} Qa3 {[%emt 0:04:30]} 31. hxg7 {[%emt 0:02:05]} Qb4 {[%emt 0:01:09]} 32. Rc2 {[%emt 0:02:26]} Ra6 {[%emt 0:00:07]} 33. Rc4 {[%emt 0:01:08]} Qa3 {[%emt 0:01:05]} 34. Qc5 {[%emt 0:00:29]} Rba8 {[%emt 0:04:16]} 35. Qxa3 {[%emt 0:00:56]} Nxa3 {[%emt 0:00:02]} 36. Rc5 {[%emt 0:01:30]} Nb5 {[%emt 0:04:30]} 37. Bf1 {[%emt 0:00:34]} Rb8 {[%emt 0:00:41]} 38. Kb2 {[%emt 0:01:21]} Rab6 {[%emt 0:00:24]} 39. Bg2 {[%emt 0:00:47]} Kxg7 {[%emt 0:02:32]} 40. Ne2 {[%emt 0:00:31] normal} 1-0

[Event "GER-ch Youth ODJM 2019"]
[Site "Willingen"]
[Date "2019.06.14"]
[Round "8.10"]
[White "Savchenko, Daniel"]
[Black "Kotyk, Michael"]
[Result "1-0"]
[ECO "C70"]
[WhiteElo "2120"]
[BlackElo "1966"]
[Annotator "NA"]
[PlyCount "119"]
[EventDate "2019.06.07"]
[EventType "swiss"]
[EventRounds "9"]
[EventCountry "GER"]
[SourceTitle "playchess.com"]
[Source "ChessBase"]
[SourceQuality "1"]
[TimeControl "40/5400+30:1800+30"]

1. e4 {[%emt 0:00:00]} e5 {[%emt 0:00:00]} 2. Nf3 {[%emt 0:00:00]} Nc6 {[%emt 0:00:00]} 3. Bb5 {[%emt 0:00:00]} a6 {[%emt 0:00:00]} 4. Ba4 {[%emt 0:00:00]} b5 {[%emt 0:00:00]} 5. Bb3 {[%emt 0:00:05]} Na5 {[%emt 0:00:00]} 6. c3 {[%emt 0:02:28]} Nxb3 {[%emt 0:01:02]} 7. Qxb3 {[%emt 0:00:13]} d6 {[%emt 0:00:43]} 8. d4 {[%emt 0:01:26]} Bb7 {[%emt 0:10:30]} 9. O-O {[%emt 0:11:41]} Nf6 {[%emt 0:01:03]} 10. Nbd2 {[%emt 0:14:36]} Nxe4 {[%emt 0:03:56]} 11. Nxe4 {[%emt 0:06:47]} Bxe4 {[%emt 0:00:07]} 12. Ng5 {[%emt 0:00:17]} Bg6 {[%emt 0:00:42]} 13. Qd5 {[%emt 0:01:08]} Be7 {[%emt 0:05:36]} 14. Qc6+ {[%emt 0:00:18]} Kf8 {[%emt 0:00:01]} 15. dxe5 {[%emt 0:00:23]} h6 {[%emt 0:04:04]} 16. Nf3 {[%emt 0:00:55]} Kg8 {[%emt 0:01:36]} 17. Bf4 {[%emt 0:00:15]} Rb8 {[%emt 0:10:06]} 18. Qxa6 {[%emt 0:08:57]} Rb6 {[%emt 0:00:31]} 19. Qa7 {[%emt 0:00:43]} Be4 {[%emt 0:04:16]} 20. exd6 {[%emt 0:00:29]} Bxd6 {[%emt 0:00:13]} 21. Bxd6 {[%emt 0:00:35]} Qxd6 {[%emt 0:04:49]} 22. Rad1 {[%emt 0:02:38]} Qf4 {[%emt 0:04:06]} 23. Nd4 {[%emt 0:12:55]} Bb7 {[%emt 0:07:45]} 24. f3 {[%emt 0:10:49]} Kh7 {[%emt 0:08:10]} 25. Qa3 {[%emt 0:00:27]} Ra8 {[%emt 0:10:11]} 26. Qb3 {[%emt 0:00:52]} Kg8 {[%emt 0:10:10]} 27. a3 {[%emt 0:01:38]} Qg5 {[%emt 0:00:32]} 28. Qc2 {[%emt 0:00:52]} c5 {[%emt 0:01:14]} 29. Nf5 {[%emt 0:00:25]} g6 {[%emt 0:03:06]} 30. Ng3 {[%emt 0:01:11]} Re8 {[%emt 0:00:16]} 31. Qf2 {[%emt 0:04:32]} Kg7 {[%emt 0:05:35]} 32. Rd7 {[%emt 0:00:29]} Re7 {[%emt 0:01:23]} 33. Rxe7 {[%emt 0:02:45]} Qxe7 34. Re1 {[%emt 0:00:34]} Qd6 {[%emt 0:00:26]} 35. Qe2 {[%emt 0:00:31]} c4 {[%emt 0:03:44]} 36. Qf2 {[%emt 0:00:46]} Qd8 {[%emt 0:01:12]} 37. Ne2 {[%emt 0:00:53]} Qd2 {[%emt 0:00:49]} 38. Kf1 {[%emt 0:01:05]} Rd6 {[%emt 0:00:33]} 39. Nd4 {[%emt 0:01:08]} Qg5 {[%emt 0:00:16]} 40. Qe2 {[%emt 0:00:28]} Qf6 {[%emt 0:00:44]} 41. Qe5 {[%emt 0:34:30]} Rd5 {[%emt 0:02:14]} 42. Qc7 {[%emt 0:00:00]} Ba6 {[%emt 0:01:20]} 43. Re6 {[%emt 0:00:00]} Qg5 {[%emt 0:00:45]} 44. f4 {[%emt 0:00:00]} Qh5 {[%emt 0:01:14]} 45. Rxa6 {[%emt 0:00:00]} Rxd4 {[%emt 0:01:12]} 46. cxd4 {[%emt 0:00:00]} Qd1+ {[%emt 0:00:05]} 47. Kf2 {[%emt 0:00:00]} Qxd4+ {[%emt 0:16:33]} 48. Kg3 {[%emt 0:00:00]} Qe3+ {[%emt 0:00:11]} 49. Kh4 {[%emt 0:00:00]} g5+ {[%emt 0:01:32]} 50. Kg4 {[%emt 0:00:00]} Qe2+ {[%emt 0:01:21]} 51. Kf5 {[%emt 0:00:00]} Qd3+ {[%emt 0:00:11]} 52. Ke5 {[%emt 0:00:00]} Qe3+ {[%emt 0:00:31]} 53. Kd5 {[%emt 0:00:00]} Qd2+ {[%emt 0:01:09]} 54. Kc6 {[%emt 0:00:00]} Qxg2+ {[%emt 0:00:18]} 55. Kb6 {[%emt 0:00:00]} Qf2+ {[%emt 0:00:32]} 56. Kb7 {[%emt 0:00:00]} Qf3+ {[%emt 0:01:49]} 57. Qc6 {[%emt 0:00:00]} Qh5 {[%emt 0:00:38]} 58. Qf6+ {[%emt 0:00:00]} Kh7 {[%emt 0:00:05]} 59. fxg5 {[%emt 0:00:00]} hxg5 {[%emt 0:00:14]} 60. Ra8 {[%emt 0:00:00] normal} 1-0

[Event "GER-ch Youth ODJM 2019"]
[Site "Willingen"]
[Date "2019.06.14"]
[Round "8.11"]
[White "Weber, Jannis"]
[Black "Korten, Lando"]
[Result "1/2-1/2"]
[ECO "B02"]
[WhiteElo "1889"]
[BlackElo "2122"]
[Annotator "NA"]
[PlyCount "66"]
[EventDate "2019.06.07"]
[EventType "swiss"]
[EventRounds "9"]
[EventCountry "GER"]
[SourceTitle "playchess.com"]
[Source "ChessBase"]
[SourceQuality "1"]
[TimeControl "40/5400+30:1800+30"]

1. e4 {[%emt 0:00:00]} Nf6 {[%emt 0:00:00]} 2. Nc3 {[%emt 0:00:00]} d5 {[%emt 0:00:31]} 3. e5 {[%emt 0:04:04]} d4 {[%emt 0:00:06]} 4. exf6 {[%emt 0:00:23]} dxc3 {[%emt 0:00:05]} 5. fxg7 {[%emt 0:01:20]} cxd2+ {[%emt 0:00:09]} 6. Qxd2 {[%emt 0:00:38]} Qxd2+ {[%emt 0:00:32]} 7. Bxd2 {[%emt 0:00:08]} Bxg7 {[%emt 0:00:04]} 8. O-O-O {[%emt 0:02:16]} O-O {[%emt 0:01:52]} 9. Ne2 {[%emt 0:13:55]} Rd8 {[%emt 0:10:07]} 10. Nc3 {[%emt 0:09:15]} Be6 {[%emt 0:14:46]} 11. Be2 {[%emt 0:15:05]} c6 {[%emt 0:06:38]} 12. Ne4 {[%emt 0:06:25]} Nd7 {[%emt 0:02:48]} 13. Bc3 {[%emt 0:00:37]} Bxc3 {[%emt 0:04:08]} 14. Nxc3 {[%emt 0:00:02]} Ne5 {[%emt 0:00:04]} 15. Ne4 {[%emt 0:03:03]} Bd5 {[%emt 0:01:17]} 16. Nc3 {[%emt 0:01:41]} Be6 {[%emt 0:00:41]} 17. Ne4 {[%emt 0:00:27]} b6 {[%emt 0:06:27]} 18. f4 {[%emt 0:03:39]} Nc4 {[%emt 0:03:50]} 19. Bf3 {[%emt 0:02:40]} Bd5 {[%emt 0:02:38]} 20. Rhe1 {[%emt 0:03:52]} Kf8 {[%emt 0:03:47]} 21. b3 {[%emt 0:02:42]} Nd6 {[%emt 0:00:39]} 22. c4 {[%emt 0:02:13]} Bxe4 {[%emt 0:01:35]} 23. Bxe4 {[%emt 0:00:08]} Nxe4 {[%emt 0:00:03]} 24. Rxe4 {[%emt 0:00:08]} Rxd1+ {[%emt 0:00:07]} 25. Kxd1 {[%emt 0:00:05]} Rd8+ {[%emt 0:00:03]} 26. Ke2 {[%emt 0:00:58]} e6 {[%emt 0:00:04]} 27. Re3 {[%emt 0:03:08]} Rd4 {[%emt 0:06:27]} 28. g3 {[%emt 0:02:28]} Kg7 {[%emt 0:02:12]} 29. Rd3 {[%emt 0:01:29]} Rxd3 {[%emt 0:07:12]} 30. Kxd3 {[%emt 0:00:05]} h5 {[%emt 0:00:04]} 31. Ke4 {[%emt 0:02:57]} f6 {[%emt 0:01:33]} 32. b4 {[%emt 0:03:18]} Kf7 {[%emt 0:02:24]} 33. a4 {[%emt 0:07:10]} Ke7 {[%emt 0:00:45] normal} 1/2-1/2

[Event "GER-ch Youth ODJM 2019"]
[Site "Willingen"]
[Date "2019.06.14"]
[Round "8.12"]
[White "Leser, Katrin"]
[Black "Schimnatkowski, Lukas"]
[Result "0-1"]
[ECO "B40"]
[WhiteElo "2036"]
[BlackElo "2139"]
[Annotator "NA"]
[PlyCount "51"]
[EventDate "2019.06.07"]
[EventType "swiss"]
[EventRounds "9"]
[EventCountry "GER"]
[SourceTitle "playchess.com"]
[Source "ChessBase"]
[SourceQuality "1"]
[TimeControl "40/5400+30:1800+30"]

1. e4 {[%emt 0:00:00]} c5 {[%emt 0:00:00]} 2. Nf3 {[%emt 0:00:00]} e6 {[%emt 0:00:49]} 3. d4 {[%emt 0:00:00]} cxd4 {[%emt 0:00:03]} 4. Nxd4 {[%emt 0:00:00]} Nf6 {[%emt 0:00:45]} 5. Bd3 {[%emt 0:01:16]} d6 {[%emt 0:00:21]} 6. O-O {[%emt 0:00:33]} Be7 {[%emt 0:00:12]} 7. Qe2 {[%emt 0:01:09]} Nbd7 {[%emt 0:00:49]} 8. c4 {[%emt 0:02:28]} a6 {[%emt 0:00:12]} 9. b3 {[%emt 0:02:51]} Qc7 {[%emt 0:00:47]} 10. Bb2 {[%emt 0:01:00]} b6 {[%emt 0:00:10]} 11. f4 {[%emt 0:03:04]} Bb7 {[%emt 0:00:32]} 12. Nc3 {[%emt 0:00:26]} O-O {[%emt 0:07:52]} 13. Rae1 {[%emt 0:01:36]} Rfd8 {[%emt 0:00:54]} 14. Kh1 {[%emt 0:01:41]} Bf8 {[%emt 0:03:27]} 15. Nf3 {[%emt 0:02:07]} Nc5 {[%emt 0:12:51]} 16. Bb1 {[%emt 0:01:49]} d5 {[%emt 0:00:29]} 17. e5 {[%emt 0:26:39]} Nfe4 {[%emt 0:02:05]} 18. Nxe4 {[%emt 0:05:28]} dxe4 {[%emt 0:03:14]} 19. Ng5 {[%emt 0:03:05]} Nd3 {[%emt 0:17:20]} 20. Rd1 {[%emt 0:04:05]} Qc6 {[%emt 0:04:27]} 21. Bxd3 {[%emt 0:32:13]} exd3 {[%emt 0:02:39]} 22. Qf2 {[%emt 0:01:59]} b5 {[%emt 0:07:20]} 23. a3 {[%emt 0:05:54]} bxc4 {[%emt 0:01:22]} 24. bxc4 {[%emt 0:00:05]} h6 {[%emt 0:05:03]} 25. Nxf7 {[%emt 0:01:11]} Kxf7 {[%emt 0:00:55]} 26. f5 {[%emt 0:00:05] normal} 0-1

[Event "GER-ch Youth ODJM 2019"]
[Site "Willingen"]
[Date "2019.06.14"]
[Round "8.13"]
[White "Teichert, Felix"]
[Black "Ronge, Tim Hendrick"]
[Result "0-1"]
[ECO "A45"]
[WhiteElo "2027"]
[BlackElo "2143"]
[Annotator "NA"]
[PlyCount "68"]
[EventDate "2019.06.07"]
[EventType "swiss"]
[EventRounds "9"]
[EventCountry "GER"]
[SourceTitle "playchess.com"]
[Source "ChessBase"]
[SourceQuality "1"]
[TimeControl "40/5400+30:1800+30"]

1. d4 {[%emt 0:00:00]} Nf6 {[%emt 0:00:00]} 2. Bg5 {[%emt 0:00:00]} Ne4 {[%emt 0:00:00]} 3. Bf4 {[%emt 0:00:00]} e6 {[%emt 0:00:46]} 4. e3 {[%emt 0:00:21]} b6 {[%emt 0:03:51]} 5. f3 {[%emt 0:04:25]} Nf6 {[%emt 0:00:06]} 6. Bd3 {[%emt 0:02:38]} d5 {[%emt 0:01:55]} 7. Nc3 {[%emt 0:01:43]} Bd6 {[%emt 0:08:23]} 8. Nge2 {[%emt 0:02:16]} O-O {[%emt 0:00:26]} 9. O-O {[%emt 0:01:14]} c5 {[%emt 0:00:16]} 10. Bxd6 {[%emt 0:05:17]} Qxd6 {[%emt 0:00:29]} 11. Nb5 {[%emt 0:00:35]} Qe7 {[%emt 0:00:12]} 12. c4 {[%emt 0:01:48]} Bb7 {[%emt 0:01:35]} 13. Rc1 {[%emt 0:03:34]} Nc6 {[%emt 0:01:47]} 14. Qd2 {[%emt 0:13:24]} dxc4 {[%emt 0:11:03]} 15. Bxc4 {[%emt 0:06:41]} Rfd8 {[%emt 0:03:50]} 16. Rfd1 {[%emt 0:01:26]} a6 {[%emt 0:01:41]} 17. Na3 {[%emt 0:00:08]} b5 {[%emt 0:00:52]} 18. Bd3 {[%emt 0:03:26]} cxd4 {[%emt 0:00:26]} 19. exd4 {[%emt 0:00:41]} Rd7 {[%emt 0:06:31]} 20. Nc2 {[%emt 0:06:20]} Rad8 {[%emt 0:00:16]} 21. Be4 {[%emt 0:08:40]} Nd5 {[%emt 0:17:17]} 22. Ne3 {[%emt 0:01:58]} Ncb4 {[%emt 0:04:16]} 23. Nc3 {[%emt 0:06:41]} h6 {[%emt 0:03:29]} 24. a4 {[%emt 0:04:18]} Nf6 {[%emt 0:16:23]} 25. axb5 {[%emt 0:03:24]} axb5 {[%emt 0:02:42]} 26. Bxb7 {[%emt 0:06:34]} Rxb7 {[%emt 0:00:13]} 27. Qe2 {[%emt 0:00:17]} Nbd5 {[%emt 0:02:23]} 28. Nexd5 {[%emt 0:01:32]} Nxd5 {[%emt 0:00:34]} 29. Qe5 {[%emt 0:06:47]} Qb4 {[%emt 0:04:55]} 30. Rc2 {[%emt 0:03:25]} Qb3 {[%emt 0:02:24]} 31. Qe4 {[%emt 0:01:10]} Rc7 {[%emt 0:01:05]} 32. Rdc1 {[%emt 0:01:13]} Rdc8 {[%emt 0:00:55]} 33. Qd3 {[%emt 0:02:42]} Rc4 {[%emt 0:02:06]} 34. Re1 {[%emt 0:01:00]} Nb4 {[%emt 0:00:22] normal} 0-1

[Event "GER-ch Youth ODJM 2019"]
[Site "Willingen"]
[Date "2019.06.14"]
[Round "8.14"]
[White "Fistoul, Boris"]
[Black "Tscheuschner, Georg"]
[Result "0-1"]
[ECO "E20"]
[WhiteElo "1918"]
[BlackElo "2113"]
[Annotator "NA"]
[PlyCount "56"]
[EventDate "2019.06.07"]
[EventType "swiss"]
[EventRounds "9"]
[EventCountry "GER"]
[SourceTitle "playchess.com"]
[Source "ChessBase"]
[SourceQuality "1"]
[TimeControl "40/5400+30:1800+30"]

1. d4 {[%emt 0:00:08]} Nf6 {[%emt 0:00:00]} 2. c4 {[%emt 0:00:06]} e6 {[%emt 0:00:06]} 3. Nc3 {[%emt 0:00:16]} Bb4 {[%emt 0:00:11]} 4. f3 {[%emt 0:00:29]} c5 {[%emt 0:00:48]} 5. e3 {[%emt 0:01:52]} cxd4 {[%emt 0:04:04]} 6. exd4 {[%emt 0:00:15]} d5 {[%emt 0:05:24]} 7. a3 {[%emt 0:11:47]} Bxc3+ {[%emt 0:00:25]} 8. bxc3 {[%emt 0:00:07]} dxc4 {[%emt 0:00:24]} 9. Bxc4 {[%emt 0:04:03]} Qc7 {[%emt 0:22:48]} 10. Qb3 {[%emt 0:03:39]} Nc6 {[%emt 0:03:59]} 11. Ne2 {[%emt 0:04:02]} Na5 {[%emt 0:04:32]} 12. Bb5+ {[%emt 0:02:27]} Bd7 {[%emt 0:00:58]} 13. Qa4 {[%emt 0:02:37]} b6 {[%emt 0:02:09]} 14. Bf4 {[%emt 0:05:15]} Bxb5 {[%emt 0:00:40]} 15. Qxb5+ {[%emt 0:01:43]} Qd7 {[%emt 0:00:21]} 16. Qg5 {[%emt 0:01:38]} O-O {[%emt 0:00:36]} 17. Be5 {[%emt 0:05:54]} Ne8 {[%emt 0:01:13]} 18. Qg3 {[%emt 0:02:28]} Nc4 {[%emt 0:02:39]} 19. Bf4 {[%emt 0:04:33]} Ned6 {[%emt 0:04:35]} 20. Bxd6 {[%emt 0:02:16]} Nxd6 {[%emt 0:02:31]} 21. O-O {[%emt 0:02:08]} Rac8 {[%emt 0:00:11]} 22. Rfc1 {[%emt 0:01:31]} Rc4 {[%emt 0:10:18]} 23. Rc2 {[%emt 0:01:32]} Rfc8 {[%emt 0:01:19]} 24. Rac1 {[%emt 0:00:40]} Nf5 {[%emt 0:01:50]} 25. Qf2 {[%emt 0:04:16]} Qa4 {[%emt 0:02:36]} 26. g4 {[%emt 0:03:14]} Ne7 {[%emt 0:01:53]} 27. f4 {[%emt 0:01:11]} Qxa3 {[%emt 0:00:18] normal} 28. Kg2 {[%emt 0:05:26] normal} Qd6 {[%emt 0:03:16] normal} 0-1

[Event "GER-ch Youth ODJM 2019"]
[Site "Willingen"]
[Date "2019.06.14"]
[Round "8.15"]
[White "Gallasch, Robin"]
[Black "Wuebker, Paul-Luca"]
[Result "1-0"]
[ECO "A36"]
[WhiteElo "1889"]
[BlackElo "2035"]
[Annotator "NA"]
[PlyCount "127"]
[EventDate "2019.06.07"]
[EventType "swiss"]
[EventRounds "9"]
[EventCountry "GER"]
[SourceTitle "playchess.com"]
[Source "ChessBase"]
[SourceQuality "1"]
[TimeControl "40/5400+30:1800+30"]

1. c4 {[%emt 0:00:19]} c5 {[%emt 0:00:00]} 2. g3 {[%emt 0:00:05]} g6 {[%emt 0:00:00]} 3. Bg2 {[%emt 0:00:02]} Bg7 {[%emt 0:00:00]} 4. Nc3 {[%emt 0:00:02]} Nc6 {[%emt 0:00:00]} 5. a3 {[%emt 0:01:29]} b6 {[%emt 0:03:48]} 6. Rb1 {[%emt 0:01:26]} Bb7 {[%emt 0:00:45]} 7. Nf3 {[%emt 0:01:43]} d6 {[%emt 0:00:51]} 8. O-O {[%emt 0:02:17]} Qd7 {[%emt 0:00:22]} 9. b4 {[%emt 0:01:04]} Bxc3 {[%emt 0:00:54]} 10. dxc3 {[%emt 0:00:05]} Nf6 {[%emt 0:01:51]} 11. Nd2 {[%emt 0:06:45]} Ne5 {[%emt 0:06:00]} 12. e4 {[%emt 0:01:36]} Nd3 {[%emt 0:06:51]} 13. Qe2 {[%emt 0:01:46]} Nxc1 {[%emt 0:00:33]} 14. Rfxc1 {[%emt 0:00:05]} Rc8 {[%emt 0:02:31]} 15. Re1 {[%emt 0:01:40]} e5 {[%emt 0:13:44]} 16. b5 {[%emt 0:04:25]} Kd8 {[%emt 0:06:23]} 17. Rbd1 {[%emt 0:01:16]} Kc7 {[%emt 0:00:25]} 18. Nf1 {[%emt 0:03:37]} a5 {[%emt 0:10:07]} 19. h4 {[%emt 0:01:15]} Rcf8 {[%emt 0:00:46]} 20. Kh2 {[%emt 0:00:58]} Bc8 {[%emt 0:00:44]} 21. f3 {[%emt 0:01:57]} Nh5 {[%emt 0:02:29]} 22. Ne3 {[%emt 0:02:32]} f5 {[%emt 0:00:21]} 23. Nd5+ {[%emt 0:02:49]} Kb7 {[%emt 0:02:02]} 24. exf5 {[%emt 0:01:43]} gxf5 {[%emt 0:00:45]} 25. f4 {[%emt 0:00:55]} Nxf4 {[%emt 0:03:50]} 26. Nxf4+ {[%emt 0:00:59]} Ka7 {[%emt 0:00:11]} 27. Qf3 {[%emt 0:00:43]} e4 {[%emt 0:02:23]} 28. Qe3 {[%emt 0:01:49]} Rhg8 {[%emt 0:00:27]} 29. Rd2 {[%emt 0:01:04]} Rf6 {[%emt 0:00:33]} 30. Red1 {[%emt 0:02:06]} Rh6 {[%emt 0:01:01]} 31. Bh3 {[%emt 0:02:51]} Qe7 {[%emt 0:01:50]} 32. Rd5 {[%emt 0:06:45]} Rf8 {[%emt 0:02:10]} 33. Ng2 {[%emt 0:04:33]} Rhf6 {[%emt 0:00:52]} 34. Qf4 {[%emt 0:01:09]} e3 {[%emt 0:02:22]} 35. Qxe3 {[%emt 0:10:32]} Re6 {[%emt 0:00:20]} 36. Qf4 {[%emt 0:00:10]} Rff6 {[%emt 0:00:32]} 37. Rxf5 {[%emt 0:10:12]} Bb7 {[%emt 0:03:57]} 38. Rxf6 {[%emt 0:13:22]} Rxf6 {[%emt 0:00:10]} 39. Qe3 {[%emt 0:00:35]} Qf7 {[%emt 0:00:29]} 40. Nf4 {[%emt 0:02:42]} Qxc4 {[%emt 0:00:09]} 41. Bg2 {[%emt 0:31:26]} Rf7 {[%emt 0:34:18]} 42. Bxb7 {[%emt 0:00:50]} Rxb7 {[%emt 0:00:06]} 43. Qd3 {[%emt 0:06:50]} Qa2+ {[%emt 0:00:09]} 44. Kh3 {[%emt 0:00:28]} Qxa3 {[%emt 0:00:54]} 45. Qc2 {[%emt 0:00:00]} c4 {[%emt 0:00:00]} 46. Ne6 {[%emt 0:00:00]} Re7 {[%emt 0:00:00]} 47. Nd4 {[%emt 0:00:00]} Rg7 {[%emt 0:00:00]} 48. Nc6+ {[%emt 0:00:00]} Kb7 {[%emt 0:00:00]} 49. Qe4 {[%emt 0:00:00]} Qxc3 {[%emt 0:00:00]} 50. Nxa5+ Ka7 {[%emt 0:00:00]} 51. Nc6+ {[%emt 0:00:00]} Kb7 {[%emt 0:00:00]} 52. Qf4 {[%emt 0:00:00]} Qb3 {[%emt 0:00:00]} 53. Qxd6 {[%emt 0:00:00]} Qxb5 {[%emt 0:00:00]} 54. Qb8+ {[%emt 0:01:21]} Kxc6 {[%emt 0:00:00]} 55. Qe8+ {[%emt 0:00:02]} Kc5 {[%emt 0:00:00]} 56. Rd5+ {[%emt 0:00:10]} Kxd5 {[%emt 0:00:00]} 57. Qxb5+ {[%emt 0:00:02]} Kd4 {[%emt 0:00:00]} 58. Qxb6+ {[%emt 0:00:17]} Kd3 {[%emt 0:00:00]} 59. Qd6+ {[%emt 0:00:49]} Kc2 {[%emt 0:00:00]} 60. Qd4 {[%emt 0:00:26]} Rc7 {[%emt 0:00:00]} 61. Qf2+ {[%emt 0:01:10]} Kd1 {[%emt 0:00:00]} 62. Qd4+ {[%emt 0:00:20]} Kc2 {[%emt 0:00:00]} 63. Qf4 {[%emt 0:00:43]} Rc5 {[%emt 0:00:00] normal} 64. Qf2+ {[%emt 0:00:06] normal} 1-0

[Event "GER-ch Youth ODJM 2019"]
[Site "Willingen"]
[Date "2019.06.14"]
[Round "8.16"]
[White "Biermann, Lenhard"]
[Black "Mainka, Alwin"]
[Result "1-0"]
[ECO "A15"]
[WhiteElo "2069"]
[BlackElo "1833"]
[Annotator "NA"]
[PlyCount "53"]
[EventDate "2019.06.07"]
[EventType "swiss"]
[EventRounds "9"]
[EventCountry "GER"]
[SourceTitle "playchess.com"]
[Source "ChessBase"]
[SourceQuality "1"]
[TimeControl "40/5400+30:1800+30"]

1. c4 {[%emt 0:00:00]} Nf6 {[%emt 0:00:00]} 2. g3 {[%emt 0:00:00]} g6 {[%emt 0:00:00]} 3. Bg2 {[%emt 0:00:00]} d5 {[%emt 0:00:00]} 4. cxd5 {[%emt 0:00:00]} Nxd5 {[%emt 0:00:00]} 5. Qb3 {[%emt 0:00:05]} Nb6 {[%emt 0:00:08]} 6. Qc3 {[%emt 0:00:19]} f6 {[%emt 0:00:26]} 7. Nf3 {[%emt 0:01:02]} Bg7 {[%emt 0:00:29]} 8. d4 {[%emt 0:00:09]} O-O {[%emt 0:00:42]} 9. O-O {[%emt 0:00:11]} Nc6 {[%emt 0:03:12]} 10. Rd1 {[%emt 0:09:14]} f5 {[%emt 0:08:55]} 11. Qb3+ {[%emt 0:24:45]} e6 {[%emt 0:08:24]} 12. Nc3 {[%emt 0:05:45]} Kh8 {[%emt 0:09:18]} 13. Bg5 {[%emt 0:11:11]} Qe8 {[%emt 0:05:30]} 14. Bf4 {[%emt 0:02:11]} Qf7 {[%emt 0:08:54]} 15. Nb5 {[%emt 0:11:04]} Nd5 {[%emt 0:20:38]} 16. Ng5 {[%emt 0:00:12]} Qe7 {[%emt 0:00:05]} 17. Bxd5 {[%emt 0:01:03]} exd5 {[%emt 0:00:05]} 18. Nxc7 {[%emt 0:00:58]} h6 {[%emt 0:00:22]} 19. Nf3 {[%emt 0:10:46]} g5 {[%emt 0:01:07]} 20. Nxd5 {[%emt 0:00:32]} Qd8 {[%emt 0:09:15]} 21. Bc7 {[%emt 0:00:34]} Qe8 {[%emt 0:00:06]} 22. Bd6 {[%emt 0:02:08]} Be6 {[%emt 0:00:06]} 23. Bxf8 {[%emt 0:03:00]} Qxf8 {[%emt 0:00:05]} 24. Rac1 {[%emt 0:05:19]} Rd8 {[%emt 0:04:01]} 25. Qxb7 {[%emt 0:04:07]} Bxd5 {[%emt 0:00:09]} 26. Rxc6 {[%emt 0:03:04]} Qe8 {[%emt 0:00:07]} 27. Ne5 {[%emt 0:00:12] normal} 1-0